[Event "*** Titled Tuesday Blitz"]
[Site "Chess.com"]
[Date "2020.05.05"]
[Round "6"]
[White "Bastiandash"]
[Black "Camels1981"]
[Result "1/2-1/2"]
[WhiteElo "2098"]
[BlackElo "2236"]
[TimeControl "180+1"]
[EndTime "11:08:38 PDT"]
[Termination "Game drawn by repetition"]

1. d4 {[%clk 0:03:00.9]} 1... Nf6 {[%clk 0:02:58.6]} 2. Nf3 {[%clk 0:03:01.8]}
2... g6 {[%clk 0:02:58.1]} 3. c3 {[%clk 0:03:02.7]} 3... Bg7 {[%clk 0:02:58.3]}
4. Bg5 {[%clk 0:03:03.5]} 4... O-O {[%clk 0:02:58.7]} 5. Nbd2 {[%clk 0:03:04.1]}
5... d6 {[%clk 0:02:57.7]} 6. e4 {[%clk 0:03:04.7]} 6... c5 {[%clk 0:02:57.1]}
7. dxc5 {[%clk 0:03:04.4]} 7... dxc5 {[%clk 0:02:56.8]} 8. Bc4 {[%clk
0:03:05.2]} 8... Nc6 {[%clk 0:02:56.2]} 9. O-O {[%clk 0:03:05.3]} 9... Qc7
{[%clk 0:02:56.2]} 10. Qc2 {[%clk 0:03:05.2]} 10... h6 {[%clk 0:02:54.4]} 11.
Bh4 {[%clk 0:03:04]} 11... b6 {[%clk 0:02:54.1]} 12. Rfe1 {[%clk 0:03:03.8]}
12... Bb7 {[%clk 0:02:51.8]} 13. a4 {[%clk 0:03:04.1]} 13... Rad8 {[%clk
0:02:48.3]} 14. Bf1 {[%clk 0:03:02.2]} 14... Na5 {[%clk 0:02:39.3]} 15. Nc4
{[%clk 0:02:48.9]} 15... Nxc4 {[%clk 0:02:36.8]} 16. Bxc4 {[%clk 0:02:49.8]}
16... Rfe8 {[%clk 0:02:23.8]} 17. e5 {[%clk 0:02:31.6]} 17... Nd5 {[%clk
0:02:14.8]} 18. Rad1 {[%clk 0:01:57.1]} 18... Nf4 {[%clk 0:01:58.7]} 19. Rxd8
{[%clk 0:00:58.5]} 19... Rxd8 {[%clk 0:01:56.1]} 20. Bg3 {[%clk 0:00:59.4]}
20... Qd7 {[%clk 0:01:07]} 21. Bxf4 {[%clk 0:00:54.4]} 21... Qg4 {[%clk
0:01:06]} 22. Bg3 {[%clk 0:00:52.6]} 22... Qxc4 {[%clk 0:01:05.6]} 23. e6 {[%clk
0:00:29.9]} 23... f5 {[%clk 0:01:01.8]} 24. Be5 {[%clk 0:00:29.8]} 24... Be4
{[%clk 0:00:53.1]} 25. Qc1 {[%clk 0:00:15.5]} 25... Qxe6 {[%clk 0:00:50.2]} 26.
Bxg7 {[%clk 0:00:12.3]} 26... Kxg7 {[%clk 0:00:51.1]} 27. Nd2 {[%clk 0:00:13]}
27... Qd5 {[%clk 0:00:39]} 28. Nxe4 {[%clk 0:00:13.1]} 28... fxe4 {[%clk
0:00:39.6]} 29. Qf4 {[%clk 0:00:12.1]} 29... Qf5 {[%clk 0:00:36.9]} 30. Qe3
{[%clk 0:00:09.3]} 30... Rd3 {[%clk 0:00:36]} 31. Qe2 {[%clk 0:00:07.8]} 31...
Qd5 {[%clk 0:00:32.4]} 32. h3 {[%clk 0:00:07.3]} 32... Rd2 {[%clk 0:00:30.4]}
33. Qxe4 {[%clk 0:00:07.3]} 33... Qxe4 {[%clk 0:00:30.6]} 34. Rxe4 {[%clk
0:00:08.2]} 34... Kf6 {[%clk 0:00:29.8]} 35. b4 {[%clk 0:00:07.9]} 35... cxb4
{[%clk 0:00:20.9]} 36. cxb4 {[%clk 0:00:08.8]} 36... Ra2 {[%clk 0:00:20.3]} 37.
b5 {[%clk 0:00:07.2]} 37... e5 {[%clk 0:00:18.3]} 38. f3 {[%clk 0:00:07.7]}
38... Kf5 {[%clk 0:00:18.6]} 39. Kh2 {[%clk 0:00:08]} 39... Rd2 {[%clk 0:00:18]}
40. Kg3 {[%clk 0:00:05]} 40... Rd4 {[%clk 0:00:17.9]} 41. Rxd4 {[%clk
0:00:03.2]} 41... exd4 {[%clk 0:00:18.8]} 42. Kf2 {[%clk 0:00:04.1]} 42... Kf4
{[%clk 0:00:18.6]} 43. g3+ {[%clk 0:00:04.6]} 43... Ke5 {[%clk 0:00:18.8]} 44.
Ke2 {[%clk 0:00:05.5]} 44... g5 {[%clk 0:00:17.1]} 45. Kd3 {[%clk 0:00:03.2]}
45... Kd5 {[%clk 0:00:16.1]} 46. h4 {[%clk 0:00:02.3]} 46... gxh4 {[%clk
0:00:15.6]} 47. gxh4 {[%clk 0:00:03.2]} 47... h5 {[%clk 0:00:13.1]} 48. f4
{[%clk 0:00:03.2]} 48... Kc5 {[%clk 0:00:13.5]} 49. f5 {[%clk 0:00:03.5]} 49...
Kd5 {[%clk 0:00:14]} 50. f6 {[%clk 0:00:03.5]} 50... Ke6 {[%clk 0:00:14.1]} 51.
Kxd4 {[%clk 0:00:04.1]} 51... Kxf6 {[%clk 0:00:14.2]} 52. Ke4 {[%clk 0:00:01.9]}
52... Ke6 {[%clk 0:00:14.3]} 53. Kf4 {[%clk 0:00:02.4]} 53... Kf6 {[%clk
0:00:14.6]} 54. Ke4 {[%clk 0:00:02]} 54... Ke6 {[%clk 0:00:14.8]} 55. Kf4 {[%clk
0:00:02.3]} 55... Kf6 {[%clk 0:00:11.2]} 56. Ke4 {[%clk 0:00:02.5]} 1/2-1/2

[Event "*** Titled Tuesday Blitz"]
[Site "Chess.com"]
[Date "2020.05.05"]
[Round "6"]
[White "dolynachess"]
[Black "IMinTheWings"]
[Result "1-0"]
[WhiteElo "2400"]
[BlackElo "2190"]
[TimeControl "180+1"]
[EndTime "11:08:39 PDT"]
[Termination "dolynachess won on time"]

1. Nf3 {[%clk 0:03:00.9]} 1... c5 {[%clk 0:02:55]} 2. c4 {[%clk 0:03:00.2]} 2...
Nc6 {[%clk 0:02:55.3]} 3. g3 {[%clk 0:03:00.7]} 3... g6 {[%clk 0:02:55.7]} 4.
Bg2 {[%clk 0:03:01.3]} 4... Bg7 {[%clk 0:02:56.3]} 5. O-O {[%clk 0:03:01.9]}
5... e6 {[%clk 0:02:56.5]} 6. e4 {[%clk 0:02:55.3]} 6... Nge7 {[%clk 0:02:56]}
7. Nc3 {[%clk 0:02:55.5]} 7... O-O {[%clk 0:02:55.5]} 8. Re1 {[%clk 0:02:54.6]}
8... d6 {[%clk 0:02:55.5]} 9. d3 {[%clk 0:02:53.6]} 9... a6 {[%clk 0:02:55.5]}
10. Be3 {[%clk 0:02:52.9]} 10... h6 {[%clk 0:02:50.4]} 11. d4 {[%clk 0:02:52]}
11... cxd4 {[%clk 0:02:49.9]} 12. Nxd4 {[%clk 0:02:52.9]} 12... Rb8 {[%clk
0:02:42]} 13. Qd2 {[%clk 0:02:33.2]} 13... Kh7 {[%clk 0:02:41.3]} 14. Nxc6
{[%clk 0:02:07.4]} 14... Nxc6 {[%clk 0:02:37.4]} 15. Rad1 {[%clk 0:02:06.2]}
15... Ne5 {[%clk 0:02:32.3]} 16. b3 {[%clk 0:02:00.2]} 16... Qa5 {[%clk
0:02:31.7]} 17. Bd4 {[%clk 0:01:41.8]} 17... Rd8 {[%clk 0:02:08.7]} 18. f4
{[%clk 0:01:27.7]} 18... Nc6 {[%clk 0:01:59.9]} 19. Bxg7 {[%clk 0:01:27.4]}
19... Kxg7 {[%clk 0:02:00.8]} 20. Qb2 {[%clk 0:01:23]} 20... Kh7 {[%clk
0:01:43.9]} 21. h3 {[%clk 0:01:21.2]} 21... b5 {[%clk 0:01:32.5]} 22. cxb5
{[%clk 0:01:05.3]} 22... axb5 {[%clk 0:01:33.4]} 23. Kh2 {[%clk 0:01:04.3]}
23... Ne7 {[%clk 0:00:58]} 24. Rd2 {[%clk 0:00:51.4]} 24... Rb7 {[%clk
0:00:51.3]} 25. Red1 {[%clk 0:00:50.9]} 25... Rbd7 {[%clk 0:00:51.6]} 26. Ne2
{[%clk 0:00:37.3]} 26... Bb7 {[%clk 0:00:44.8]} 27. Qf6 {[%clk 0:00:36.5]} 27...
Ng8 {[%clk 0:00:44.8]} 28. Qc3 {[%clk 0:00:34.8]} 28... Qxc3 {[%clk 0:00:42.6]}
29. Nxc3 {[%clk 0:00:35.7]} 29... Bc6 {[%clk 0:00:41.7]} 30. e5 {[%clk
0:00:24.1]} 30... d5 {[%clk 0:00:41.6]} 31. Ne2 {[%clk 0:00:24.1]} 31... Ne7
{[%clk 0:00:40.6]} 32. Nd4 {[%clk 0:00:23.9]} 32... Ra7 {[%clk 0:00:39.6]} 33.
Rc1 {[%clk 0:00:20.5]} 33... Be8 {[%clk 0:00:39.4]} 34. Bf1 {[%clk 0:00:14.5]}
34... Rda8 {[%clk 0:00:39.4]} 35. Rcc2 {[%clk 0:00:14.5]} 35... Nf5 {[%clk
0:00:28.1]} 36. Nxf5 {[%clk 0:00:10.3]} 36... gxf5 {[%clk 0:00:27.8]} 37. Kg2
{[%clk 0:00:10.4]} 37... Kg6 {[%clk 0:00:25.9]} 38. Kf2 {[%clk 0:00:10.6]} 38...
h5 {[%clk 0:00:26.4]} 39. Ke3 {[%clk 0:00:06.9]} 39... b4 {[%clk 0:00:21.7]} 40.
Kd4 {[%clk 0:00:06.5]} 40... Ra5 {[%clk 0:00:22.2]} 41. Bd3 {[%clk 0:00:05.5]}
41... Kg7 {[%clk 0:00:16.3]} 42. Rg2 {[%clk 0:00:04.8]} 42... Kf8 {[%clk
0:00:16.4]} 43. Rgf2 {[%clk 0:00:04.3]} 43... Bd7 {[%clk 0:00:16.2]} 44. Rfd2
{[%clk 0:00:05.2]} 44... Ke7 {[%clk 0:00:16.5]} 45. Rg2 {[%clk 0:00:05.6]} 45...
Rh8 {[%clk 0:00:15.8]} 46. Rgd2 {[%clk 0:00:06.1]} 46... h4 {[%clk 0:00:16]} 47.
g4 {[%clk 0:00:06.5]} 47... fxg4 {[%clk 0:00:16.1]} 48. hxg4 {[%clk 0:00:07.4]}
48... h3 {[%clk 0:00:16.3]} 49. Rh2 {[%clk 0:00:08]} 49... Rha8 {[%clk
0:00:16.4]} 50. f5 {[%clk 0:00:06.9]} 50... Ke8 {[%clk 0:00:15.4]} 51. f6 {[%clk
0:00:06.5]} 51... Kd8 {[%clk 0:00:15.7]} 52. Rxh3 {[%clk 0:00:06.6]} 52... Rxa2
{[%clk 0:00:15.9]} 53. Rh8+ {[%clk 0:00:06.8]} 53... Be8 {[%clk 0:00:16.4]} 54.
Rxa2 {[%clk 0:00:06.9]} 54... Rxa2 {[%clk 0:00:16.3]} 55. Bb5 {[%clk 0:00:07.5]}
55... Rd2+ {[%clk 0:00:15.6]} 56. Kc5 {[%clk 0:00:07.8]} 56... Rc2+ {[%clk
0:00:15.5]} 57. Kd6 {[%clk 0:00:08.1]} 57... Rc6+ {[%clk 0:00:13.5]} 58. Bxc6
{[%clk 0:00:07.7]} 1-0

[Event "*** Titled Tuesday Blitz"]
[Site "Chess.com"]
[Date "2020.05.05"]
[Round "6"]
[White "norwaytoadog"]
[Black "Kopytkin"]
[Result "1-0"]
[WhiteElo "2183"]
[BlackElo "2331"]
[TimeControl "180+1"]
[EndTime "11:08:39 PDT"]
[Termination "norwaytoadog won on time"]

1. e4 {[%clk 0:03:00.8]} 1... c6 {[%clk 0:02:57.2]} 2. d4 {[%clk 0:03:00.4]}
2... d5 {[%clk 0:02:57.1]} 3. e5 {[%clk 0:03:00.9]} 3... c5 {[%clk 0:02:57.1]}
4. c3 {[%clk 0:03:01.2]} 4... Nc6 {[%clk 0:02:53.7]} 5. Be2 {[%clk 0:02:59.9]}
5... cxd4 {[%clk 0:02:50]} 6. cxd4 {[%clk 0:02:59.6]} 6... Qb6 {[%clk
0:02:50.7]} 7. Nc3 {[%clk 0:02:59.1]} 7... e6 {[%clk 0:02:37]} 8. Nf3 {[%clk
0:02:57.3]} 8... Nh6 {[%clk 0:02:37.1]} 9. Bxh6 {[%clk 0:02:36.2]} 9... gxh6
{[%clk 0:02:36.5]} 10. Qd2 {[%clk 0:02:36.5]} 10... Bd7 {[%clk 0:02:32.4]} 11.
O-O {[%clk 0:02:35.6]} 11... a6 {[%clk 0:02:25.7]} 12. Rab1 {[%clk 0:02:22.9]}
12... Qa7 {[%clk 0:02:24.8]} 13. Qf4 {[%clk 0:02:15.1]} 13... Bg7 {[%clk
0:02:24.3]} 14. Nd1 {[%clk 0:01:52.4]} 14... O-O {[%clk 0:02:21.9]} 15. Ne3
{[%clk 0:01:51.7]} 15... f6 {[%clk 0:02:19]} 16. exf6 {[%clk 0:01:44.1]} 16...
Rxf6 {[%clk 0:02:18.5]} 17. Qd6 {[%clk 0:01:43.3]} 17... Rf7 {[%clk 0:02:01.5]}
18. Ne5 {[%clk 0:01:25]} 18... Nxe5 {[%clk 0:01:57.8]} 19. dxe5 {[%clk
0:01:24.7]} 19... Qb8 {[%clk 0:01:55.9]} 20. Qxb8+ {[%clk 0:01:19.8]} 20... Rxb8
{[%clk 0:01:56.8]} 21. f4 {[%clk 0:01:17.8]} 21... Rff8 {[%clk 0:01:44.9]} 22.
Rbc1 {[%clk 0:01:15.8]} 22... Rbc8 {[%clk 0:01:42.6]} 23. Bg4 {[%clk 0:01:05.9]}
23... Rxc1 {[%clk 0:01:35.9]} 24. Rxc1 {[%clk 0:01:04.1]} 24... Rxf4 {[%clk
0:01:29]} 25. Rc7 {[%clk 0:00:56]} 25... Bxe5 {[%clk 0:01:09.9]} 26. Rxd7 {[%clk
0:00:49.2]} 26... Bd4 {[%clk 0:01:09.7]} 27. Bxe6+ {[%clk 0:00:47]} 27... Kf8
{[%clk 0:01:09]} 28. g3 {[%clk 0:00:38.4]} 28... Bxe3+ {[%clk 0:01:08.3]} 29.
Kg2 {[%clk 0:00:38.8]} 29... Rf2+ {[%clk 0:01:08.2]} 30. Kh3 {[%clk 0:00:38.4]}
30... d4 {[%clk 0:01:08.6]} 31. b4 {[%clk 0:00:33.1]} 31... Rb2 {[%clk
0:01:04.1]} 32. Bf5 {[%clk 0:00:28.8]} 32... Rxb4 {[%clk 0:01:00.8]} 33. Bxh7
{[%clk 0:00:28]} 33... Rb2 {[%clk 0:00:58.7]} 34. Be4 {[%clk 0:00:27.3]} 34...
b5 {[%clk 0:00:56.9]} 35. Kg4 {[%clk 0:00:25.5]} 35... Rxh2 {[%clk 0:00:52.1]}
36. Kf5 {[%clk 0:00:25.4]} 36... h5 {[%clk 0:00:38.7]} 37. Ke6 {[%clk
0:00:23.9]} 37... h4 {[%clk 0:00:26.8]} 38. Rf7+ {[%clk 0:00:21.7]} 38... Kg8
{[%clk 0:00:23.6]} 39. g4 {[%clk 0:00:16.9]} 39... Rf2 {[%clk 0:00:20.1]} 40.
Bf5 {[%clk 0:00:16.2]} 40... h3 {[%clk 0:00:16]} 41. Rh7 {[%clk 0:00:14.8]}
41... h2 {[%clk 0:00:15]} 42. Rh5 {[%clk 0:00:11.7]} 42... Bf4 {[%clk
0:00:10.7]} 43. Kd5 {[%clk 0:00:10.8]} 43... Be3 {[%clk 0:00:07.4]} 44. Ke4
{[%clk 0:00:10.5]} 44... b4 {[%clk 0:00:06.4]} 45. Rh3 {[%clk 0:00:08.7]} 45...
a5 {[%clk 0:00:06.3]} 46. Rh5 {[%clk 0:00:08.4]} 46... a4 {[%clk 0:00:06.5]} 47.
g5 {[%clk 0:00:08.3]} 47... b3 {[%clk 0:00:06.4]} 48. axb3 {[%clk 0:00:08.1]}
48... a3 {[%clk 0:00:06.2]} 49. g6 {[%clk 0:00:06.7]} 49... a2 {[%clk
0:00:05.4]} 50. Be6+ {[%clk 0:00:06.1]} 50... Kg7 {[%clk 0:00:03.7]} 51. Bf5
{[%clk 0:00:04.8]} 51... a1=Q {[%clk 0:00:02.6]} 52. Rh7+ {[%clk 0:00:04.7]} 1-0

[Event "*** Titled Tuesday Blitz"]
[Site "Chess.com"]
[Date "2020.05.05"]
[Round "6"]
[White "1random"]
[Black "alexsergeyev"]
[Result "1-0"]
[WhiteElo "2529"]
[BlackElo "2382"]
[TimeControl "180+1"]
[EndTime "11:08:42 PDT"]
[Termination "1random won on time"]

1. e4 {[%clk 0:03:00.9]} 1... e5 {[%clk 0:02:59.2]} 2. Nf3 {[%clk 0:02:53.6]}
2... Nf6 {[%clk 0:02:59.5]} 3. Nc3 {[%clk 0:02:53.6]} 3... Bb4 {[%clk
0:02:57.9]} 4. Nxe5 {[%clk 0:02:25]} 4... O-O {[%clk 0:02:56.8]} 5. Nd3 {[%clk
0:02:25.1]} 5... Bxc3 {[%clk 0:02:55.5]} 6. dxc3 {[%clk 0:02:26]} 6... Nxe4
{[%clk 0:02:54.3]} 7. Be2 {[%clk 0:02:26.7]} 7... Nc6 {[%clk 0:02:53.4]} 8. O-O
{[%clk 0:02:27.5]} 8... Re8 {[%clk 0:02:53.2]} 9. Be3 {[%clk 0:02:26.2]} 9... d6
{[%clk 0:02:52.7]} 10. Bf3 {[%clk 0:02:25.4]} 10... Bf5 {[%clk 0:02:36.5]} 11.
Re1 {[%clk 0:02:08.7]} 11... h6 {[%clk 0:02:25.7]} 12. Nf4 {[%clk 0:01:43.8]}
12... Qd7 {[%clk 0:02:12]} 13. Nh5 {[%clk 0:01:24]} 13... Ng5 {[%clk 0:01:49.9]}
14. Bxg5 {[%clk 0:01:18.8]} 14... hxg5 {[%clk 0:01:48.8]} 15. Bxc6 {[%clk
0:01:19.3]} 15... Qxc6 {[%clk 0:01:36.5]} 16. Qd4 {[%clk 0:01:10.7]} 16... f6
{[%clk 0:01:35]} 17. Nxf6+ {[%clk 0:01:11]} 17... gxf6 {[%clk 0:01:33.6]} 18.
Qxf6 {[%clk 0:01:11.9]} 18... Qd7 {[%clk 0:01:20.2]} 19. Qxg5+ {[%clk
0:01:11.6]} 19... Kf7 {[%clk 0:01:16.4]} 20. Qh5+ {[%clk 0:01:07.2]} 20... Kg7
{[%clk 0:01:06.4]} 21. Re3 {[%clk 0:00:41.1]} 21... Rxe3 {[%clk 0:01:04.1]} 22.
fxe3 {[%clk 0:00:42]} 22... Re8 {[%clk 0:00:57.3]} 23. Rf1 {[%clk 0:00:40.4]}
23... Bg6 {[%clk 0:00:56.1]} 24. Qh4 {[%clk 0:00:35.6]} 24... Qe6 {[%clk
0:00:52.9]} 25. Qd4+ {[%clk 0:00:27.5]} 25... Qe5 {[%clk 0:00:52.5]} 26. Qxa7
{[%clk 0:00:18.8]} 26... Qxe3+ {[%clk 0:00:52]} 27. Qxe3 {[%clk 0:00:19.7]}
27... Rxe3 {[%clk 0:00:51.9]} 28. Kf2 {[%clk 0:00:20.5]} 28... Re5 {[%clk
0:00:47.2]} 29. Rc1 {[%clk 0:00:17.9]} 29... Be4 {[%clk 0:00:38.9]} 30. g3
{[%clk 0:00:16]} 30... Rf5+ {[%clk 0:00:36]} 31. Ke3 {[%clk 0:00:16.2]} 31... d5
{[%clk 0:00:34.3]} 32. c4 {[%clk 0:00:14.9]} 32... Kf6 {[%clk 0:00:22.8]} 33.
cxd5 {[%clk 0:00:14]} 33... Bxd5 {[%clk 0:00:22.6]} 34. c4 {[%clk 0:00:13.5]}
34... Bc6 {[%clk 0:00:20.3]} 35. b4 {[%clk 0:00:13.7]} 35... Ke5 {[%clk
0:00:19.4]} 36. b5 {[%clk 0:00:11.2]} 36... Rf3+ {[%clk 0:00:18.1]} 37. Ke2
{[%clk 0:00:11.9]} 37... Be4 {[%clk 0:00:18.4]} 38. a4 {[%clk 0:00:10]} 38...
Ra3 {[%clk 0:00:18.3]} 39. Rb1 {[%clk 0:00:03.2]} 39... Rxa4 {[%clk 0:00:17.1]}
40. Rc1 {[%clk 0:00:02]} 40... Ra2+ {[%clk 0:00:16.9]} 41. Ke3 {[%clk
0:00:02.9]} 41... Ra3+ {[%clk 0:00:16.6]} 42. Kf2 {[%clk 0:00:03.6]} 42... Kd4
{[%clk 0:00:13.6]} 43. g4 {[%clk 0:00:04.1]} 43... Rf3+ {[%clk 0:00:09.3]} 44.
Kg1 {[%clk 0:00:02.8]} 44... Rf4 {[%clk 0:00:07.4]} 45. h3 {[%clk 0:00:03.4]}
45... Ke3 {[%clk 0:00:06.1]} 46. Kh2 {[%clk 0:00:03.1]} 46... Bd3 {[%clk
0:00:02.9]} 47. Kg3 {[%clk 0:00:02.8]} 1-0

[Event "*** Titled Tuesday Blitz"]
[Site "Chess.com"]
[Date "2020.05.05"]
[Round "6"]
[White "2nd_life"]
[Black "ItsCheckM8Mate"]
[Result "1/2-1/2"]
[WhiteElo "2417"]
[BlackElo "2273"]
[TimeControl "180+1"]
[EndTime "11:08:42 PDT"]
[Termination "Game drawn by repetition"]

1. e4 {[%clk 0:03:00.9]} 1... e5 {[%clk 0:02:59.6]} 2. f4 {[%clk 0:03:00.5]}
2... exf4 {[%clk 0:02:58.1]} 3. Nf3 {[%clk 0:03:00.6]} 3... d5 {[%clk
0:02:53.8]} 4. exd5 {[%clk 0:03:00.2]} 4... Nf6 {[%clk 0:02:53.4]} 5. Nc3 {[%clk
0:03:00.4]} 5... Nxd5 {[%clk 0:02:50.9]} 6. Nxd5 {[%clk 0:03:00.4]} 6... Qxd5
{[%clk 0:02:50.6]} 7. d4 {[%clk 0:03:01.3]} 7... Bb4+ {[%clk 0:02:26]} 8. c3
{[%clk 0:02:50.6]} 8... Bd6 {[%clk 0:02:25.9]} 9. c4 {[%clk 0:02:49.8]} 9...
Qe6+ {[%clk 0:02:20.2]} 10. Kf2 {[%clk 0:02:48.4]} 10... b6 {[%clk 0:02:13.6]}
11. Bd3 {[%clk 0:02:37.1]} 11... O-O {[%clk 0:02:12.7]} 12. Bxh7+ {[%clk
0:02:28.5]} 12... Kh8 {[%clk 0:02:12.3]} 13. Re1 {[%clk 0:02:27.5]} 13... Qh6
{[%clk 0:01:51.9]} 14. Be4 {[%clk 0:02:26.7]} 14... c6 {[%clk 0:01:49.2]} 15.
Kg1 {[%clk 0:02:12.6]} 15... Be6 {[%clk 0:01:44.4]} 16. d5 {[%clk 0:01:54.9]}
16... cxd5 {[%clk 0:01:38.5]} 17. Bxd5 {[%clk 0:01:49.6]} 17... Bxd5 {[%clk
0:01:34.8]} 18. Qxd5 {[%clk 0:01:34.4]} 18... Nd7 {[%clk 0:01:30.2]} 19. Rd1
{[%clk 0:01:17.5]} 19... Bc5+ {[%clk 0:01:25.7]} 20. Kh1 {[%clk 0:01:15]} 20...
Nf6 {[%clk 0:01:25.7]} 21. Qf5 {[%clk 0:01:14]} 21... Be3 {[%clk 0:01:20.2]} 22.
Ne5 {[%clk 0:01:08.8]} 22... Kg8 {[%clk 0:01:13.6]} 23. Nd7 {[%clk 0:00:54.9]}
23... Nxd7 {[%clk 0:01:01.4]} 24. Rxd7 {[%clk 0:00:50.3]} 24... Rad8 {[%clk
0:00:55.6]} 25. Bxe3 {[%clk 0:00:38.4]} 25... Rxd7 {[%clk 0:00:55.2]} 26. Qxd7
{[%clk 0:00:34.3]} 26... fxe3 {[%clk 0:00:55.1]} 27. Re1 {[%clk 0:00:28.2]}
27... Qf6 {[%clk 0:00:44.6]} 28. Qd3 {[%clk 0:00:19.9]} 28... Re8 {[%clk
0:00:42.7]} 29. Rxe3 {[%clk 0:00:15.7]} 29... Rxe3 {[%clk 0:00:38.9]} 30. Qxe3
{[%clk 0:00:15.7]} 30... Qxb2 {[%clk 0:00:34.3]} 31. Qe8+ {[%clk 0:00:11.3]}
31... Kh7 {[%clk 0:00:33.8]} 32. h3 {[%clk 0:00:09.9]} 32... Qc1+ {[%clk
0:00:33.9]} 33. Kh2 {[%clk 0:00:09.7]} 33... Qxc4 {[%clk 0:00:34.1]} 34. Qe5
{[%clk 0:00:07.5]} 34... g6 {[%clk 0:00:31.3]} 35. a3 {[%clk 0:00:07.2]} 35...
Qe6 {[%clk 0:00:29.3]} 36. Qc7 {[%clk 0:00:06.2]} 36... a5 {[%clk 0:00:29.4]}
37. a4 {[%clk 0:00:06.3]} 37... Kg7 {[%clk 0:00:27.8]} 38. h4 {[%clk 0:00:03.3]}
38... Qf6 {[%clk 0:00:27.5]} 39. g3 {[%clk 0:00:03.1]} 39... Qf2+ {[%clk
0:00:27.4]} 40. Kh3 {[%clk 0:00:03.2]} 40... Qf5+ {[%clk 0:00:27.9]} 41. Kh2
{[%clk 0:00:03.5]} 41... Qe6 {[%clk 0:00:25.9]} 42. Qc3+ {[%clk 0:00:02.2]}
42... Kh7 {[%clk 0:00:26.1]} 43. Qc7 {[%clk 0:00:02.6]} 43... Qa2+ {[%clk
0:00:24.6]} 44. Kh3 {[%clk 0:00:02.5]} 44... Qe6+ {[%clk 0:00:25.1]} 45. Kh2
{[%clk 0:00:02.5]} 45... Kh6 {[%clk 0:00:25.5]} 46. Kg2 {[%clk 0:00:02.6]} 46...
Qe4+ {[%clk 0:00:23.7]} 47. Kh2 {[%clk 0:00:02.8]} 47... Qe6 {[%clk 0:00:22.5]}
48. Kg2 {[%clk 0:00:03]} 48... f5 {[%clk 0:00:22.3]} 49. Kh2 {[%clk 0:00:03.3]}
49... Qe2+ {[%clk 0:00:21.6]} 50. Kh3 {[%clk 0:00:03.4]} 50... Qg4+ {[%clk
0:00:21.8]} 51. Kh2 {[%clk 0:00:03.8]} 51... Qxa4 {[%clk 0:00:21.3]} 52. Qxb6
{[%clk 0:00:03.4]} 52... Qc2+ {[%clk 0:00:19.3]} 53. Kh3 {[%clk 0:00:03.7]}
53... a4 {[%clk 0:00:14.9]} 54. Qe3+ {[%clk 0:00:03.4]} 54... Kg7 {[%clk
0:00:13.5]} 55. Qe7+ {[%clk 0:00:03.4]} 55... Kh6 {[%clk 0:00:14]} 56. Qf8+
{[%clk 0:00:03.6]} 56... Kh7 {[%clk 0:00:14]} 57. Qf7+ {[%clk 0:00:04]} 57...
Kh6 {[%clk 0:00:14.6]} 58. Qf8+ {[%clk 0:00:04.4]} 58... Kh7 {[%clk 0:00:15]}
59. Qf7+ {[%clk 0:00:04.9]} 59... Kh6 {[%clk 0:00:15.5]} 60. Qf8+ {[%clk
0:00:05.5]} 1/2-1/2